{"text_format":"3","workbook":"xlsx","n_sheets":3,"sheets":["Δεδομένα υποψήφιου πελάτη","Προβλεπόμενες πωλήσεις ","Μηνιαία σταθμισμένη πρόβλεψη"],"not_rendered":{"charts":1,"defined_names":10},"read":"whole","date_system":"1900"}

{"sheet":"Δεδομένα υποψήφιου πελάτη","index":0,"n_rows":9,"n_cols":10,"rows_kept":9}
[null,"Επωνυμία εταιρείας"]
[null,"Λεπτομερής παρακολούθηση υποψήφιων πελατών"]
[null,{"$f":"TODAY()","v":"2022-04-06"}]
[{"$nulls":8},{"$f":"Επωνυμία_Εταιρείας","v":"Επωνυμία εταιρείας"},"ΕΜΠΙΣΤΕΥΤΙΚΌ"]
[null,"Όνομα υποψήφιου πελάτη","Στοιχεία επαφής υποψήφιου πελάτη","Υποψήφιος πελάτης \nΠηγή","Υποψήφιος πελάτης \nΠεριοχή","Υποψήφιος πελάτης \nΤύπος","Πιθανή ευκαιρία","Πιθανότητα \nπώλησης","Πρόβλεψη \nΚλείσιμο","Σταθμισμένη \nΠρόβλεψη"]
[null,"A. Datum Corporation",{"$nulls":3},"Στρατηγική",{"v":300000,"d":"300,000.00 €"},{"v":0.9,"d":"90%"},"Ιανουάριος",{"$f":"IFERROR(IF(LeadData[[#This Row],[Πιθανότητα \nπώλησης]]<>\"\",LeadData[[#This Row],[Πιθανότητα \nπώλησης]]*LeadData[[#This Row],[Πιθανή ευκαιρία]],\"\"),\"\")","v":{"v":270000,"d":"270,000.00 €"}}]
[null,"Adventure Works",{"$nulls":3},"Στρατηγική",{"v":200000,"d":"200,000.00 €"},{"v":0.1,"d":"10%"},"Φεβρουάριος",{"$f":"IFERROR(IF(LeadData[[#This Row],[Πιθανότητα \nπώλησης]]<>\"\",LeadData[[#This Row],[Πιθανότητα \nπώλησης]]*LeadData[[#This Row],[Πιθανή ευκαιρία]],\"\"),\"\")","v":{"v":20000,"d":"20,000.00 €"}}]
[null,"Alpine Ski House",{"$nulls":3},"Τακτική",{"v":100000,"d":"100,000.00 €"},{"v":0.2,"d":"20%"},"Μάρτιος",{"$f":"IFERROR(IF(LeadData[[#This Row],[Πιθανότητα \nπώλησης]]<>\"\",LeadData[[#This Row],[Πιθανότητα \nπώλησης]]*LeadData[[#This Row],[Πιθανή ευκαιρία]],\"\"),\"\")","v":{"v":20000,"d":"20,000.00 €"}}]
[null,"Άθροισμα",{"$nulls":4},{"$f":"SUBTOTAL(109,LeadData[Πιθανή ευκαιρία])","v":{"v":600000,"d":"600,000.00 €"}},null,null,{"$f":"SUBTOTAL(109,LeadData[Σταθμισμένη \nΠρόβλεψη])","v":{"v":310000,"d":"310,000.00 €"}}]

{"sheet":"Προβλεπόμενες πωλήσεις ","index":1,"n_rows":21,"n_cols":14,"rows_kept":21,"merged":[[3,12,3,13]]}
[null,{"$f":"Επωνυμία_Εταιρείας","v":"Επωνυμία εταιρείας"}]
[null,"Προβλεπόμενες πωλήσεις"]
[null,{"$f":"TrackerDate","v":"2022-04-06"}]
[{"$nulls":11},{"$f":"Επωνυμία_Εταιρείας","v":"Επωνυμία εταιρείας"},"ΕΜΠΙΣΤΕΥΤΙΚΌ"]
[null,"Όνομα υποψήφιου πελάτη","Ιανουάριος \nΠρόβλεψη","Φεβρουάριος \nΠρόβλεψη","Μάρτιος \nΠρόβλεψη","Απρίλιος \nΠρόβλεψη","Μάιος \nΠρόβλεψη","Ιούνιος \nΠρόβλεψη","Πρόβλεψη \nΙουλίου","Αύγουστος \nΠρόβλεψη","Σεπτέμβριος \nΠρόβλεψη","Οκτώβριος \nΠρόβλεψη","Νοέμβριος \nΠρόβλεψη","Δεκέμβριος \nΠρόβλεψη"]
[null,{"$f":"IFERROR(IF(AND(LeadData[[#This Row],[Όνομα υποψήφιου πελάτη]] <> \"\", ROW(ForecastedSales[Όνομα υποψήφιου πελάτη])<>ΤελευταίαΚαταχώρηση),LeadData[Όνομα υποψήφιου πελάτη], \"\"),\"\")","v":"A. Datum Corporation"},{"$f":"IFERROR(IF(LeadData[[#This Row],[Πρόβλεψη \nΚλείσιμο]] <>\"\",IF(LeadData[[#This Row],[Πρόβλεψη \nΚλείσιμο]]= \"Ιανουάριος\",LeadData[Σταθμισμένη \nΠρόβλεψη],0),\"\"),\"\")","v":{"v":270000,"d":"270,000 €"}},{"$f":"IFERROR(IF(LeadData[[#This Row],[Πρόβλεψη \nΚλείσιμο]] <>\"\",IF(LeadData[[#This Row],[Πρόβλεψη \nΚλείσιμο]] = \"Φεβρουάριος\",LeadData[Σταθμισμένη \nΠρόβλεψη],0),\"\"),\"\")","v":{"v":0,"d":"0 €"}},{"$f":"IFERROR(IF(LeadData[[#This Row],[Πρόβλεψη \nΚλείσιμο]] <>\"\",IF(LeadData[[#This Row],[Πρόβλεψη \nΚλείσιμο]] = \"Μάρτιος\",LeadData[Σταθμισμένη \nΠρόβλεψη],0),\"\"),\"\")","v":{"v":0,"d":"0 €"}},{"$f":"IFERROR(IF(LeadData[[#This Row],[Πρόβλεψη \nΚλείσιμο]] <>\"\",IF(LeadData[[#This Row],[Πρόβλεψη \nΚλείσιμο]] = \"Απρίλιος\",LeadData[Σταθμισμένη \nΠρόβλεψη],0),\"\"),\"\")","v":{"v":0,"d":"0 €"}},{"$f":"IFERROR(IF(LeadData[[#This Row],[Πρόβλεψη \nΚλείσιμο]] <>\"\",IF(LeadData[[#This Row],[Πρόβλεψη \nΚλείσιμο]] = \"Μάιος\",LeadData[Σταθμισμένη \nΠρόβλεψη],0),\"\"),\"\")","v":{"v":0,"d":"0 €"}},{"$f":"IFERROR(IF(LeadData[[#This Row],[Πρόβλεψη \nΚλείσιμο]] <>\"\",IF(LeadData[[#This Row],[Πρόβλεψη \nΚλείσιμο]] = \"Ιούνιος\",LeadData[Σταθμισμένη \nΠρόβλεψη],0),\"\"),\"\")","v":{"v":0,"d":"0 €"}},{"$f":"IFERROR(IF(LeadData[[#This Row],[Πρόβλεψη \nΚλείσιμο]] <>\"\",IF(LeadData[[#This Row],[Πρόβλεψη \nΚλείσιμο]] = \"Πρόβλεψη\",LeadData[Σταθμισμένη \nΠρόβλεψη],0),\"\"),\"\")","v":{"v":0,"d":"0 €"}},{"$f":"IFERROR(IF(LeadData[[#This Row],[Πρόβλεψη \nΚλείσιμο]] <>\"\",IF(LeadData[[#This Row],[Πρόβλεψη \nΚλείσιμο]] = \"Αύγουστος\",LeadData[Σταθμισμένη \nΠρόβλεψη],0),\"\"),\"\")","v":{"v":0,"d":"0 €"}},{"$f":"IFERROR(IF(LeadData[[#This Row],[Πρόβλεψη \nΚλείσιμο]] <>\"\",IF(LeadData[[#This Row],[Πρόβλεψη \nΚλείσιμο]] = \"Σεπτέμβριος\",LeadData[Σταθμισμένη \nΠρόβλεψη],0),\"\"),\"\")","v":{"v":0,"d":"0 €"}},{"$f":"IFERROR(IF(LeadData[[#This Row],[Πρόβλεψη \nΚλείσιμο]] <>\"\",IF(LeadData[[#This Row],[Πρόβλεψη \nΚλείσιμο]] = \"Οκτώβριος\",LeadData[Σταθμισμένη \nΠρόβλεψη],0),\"\"),\"\")","v":{"v":0,"d":"0 €"}},{"$f":"IFERROR(IF(LeadData[[#This Row],[Πρόβλεψη \nΚλείσιμο]] <>\"\",IF(LeadData[[#This Row],[Πρόβλεψη \nΚλείσιμο]] = \"Νοέμβριος\",LeadData[Σταθμισμένη \nΠρόβλεψη],0),\"\"),\"\")","v":{"v":0,"d":"0 €"}},{"$f":"IFERROR(IF(LeadData[[#This Row],[Πρόβλεψη \nΚλείσιμο]] <>\"\",IF(LeadData[[#This Row],[Πρόβλεψη \nΚλείσιμο]] = \"Δεκέμβριος\",LeadData[Σταθμισμένη \nΠρόβλεψη],0),\"\"),\"\")","v":{"v":0,"d":"0 €"}}]
[null,{"$f":"IFERROR(IF(AND(LeadData[[#This Row],[Όνομα υποψήφιου πελάτη]] <> \"\", ROW(ForecastedSales[Όνομα υποψήφιου πελάτη])<>ΤελευταίαΚαταχώρηση),LeadData[Όνομα υποψήφιου πελάτη], \"\"),\"\")","v":"Adventure Works"},{"$f":"IFERROR(IF(LeadData[[#This Row],[Πρόβλεψη \nΚλείσιμο]] <>\"\",IF(LeadData[[#This Row],[Πρόβλεψη \nΚλείσιμο]]= \"Ιανουάριος\",LeadData[Σταθμισμένη \nΠρόβλεψη],0),\"\"),\"\")","v":{"v":0,"d":"0 €"}},{"$f":"IFERROR(IF(LeadData[[#This Row],[Πρόβλεψη \nΚλείσιμο]] <>\"\",IF(LeadData[[#This Row],[Πρόβλεψη \nΚλείσιμο]] = \"Φεβρουάριος\",LeadData[Σταθμισμένη \nΠρόβλεψη],0),\"\"),\"\")","v":{"v":20000,"d":"20,000 €"}},{"$f":"IFERROR(IF(LeadData[[#This Row],[Πρόβλεψη \nΚλείσιμο]] <>\"\",IF(LeadData[[#This Row],[Πρόβλεψη \nΚλείσιμο]] = \"Μάρτιος\",LeadData[Σταθμισμένη \nΠρόβλεψη],0),\"\"),\"\")","v":{"v":0,"d":"0 €"}},{"$f":"IFERROR(IF(LeadData[[#This Row],[Πρόβλεψη \nΚλείσιμο]] <>\"\",IF(LeadData[[#This Row],[Πρόβλεψη \nΚλείσιμο]] = \"Απρίλιος\",LeadData[Σταθμισμένη \nΠρόβλεψη],0),\"\"),\"\")","v":{"v":0,"d":"0 €"}},{"$f":"IFERROR(IF(LeadData[[#This Row],[Πρόβλεψη \nΚλείσιμο]] <>\"\",IF(LeadData[[#This Row],[Πρόβλεψη \nΚλείσιμο]] = \"Μάιος\",LeadData[Σταθμισμένη \nΠρόβλεψη],0),\"\"),\"\")","v":{"v":0,"d":"0 €"}},{"$f":"IFERROR(IF(LeadData[[#This Row],[Πρόβλεψη \nΚλείσιμο]] <>\"\",IF(LeadData[[#This Row],[Πρόβλεψη \nΚλείσιμο]] = \"Ιούνιος\",LeadData[Σταθμισμένη \nΠρόβλεψη],0),\"\"),\"\")","v":{"v":0,"d":"0 €"}},{"$f":"IFERROR(IF(LeadData[[#This Row],[Πρόβλεψη \nΚλείσιμο]] <>\"\",IF(LeadData[[#This Row],[Πρόβλεψη \nΚλείσιμο]] = \"Πρόβλεψη\",LeadData[Σταθμισμένη \nΠρόβλεψη],0),\"\"),\"\")","v":{"v":0,"d":"0 €"}},{"$f":"IFERROR(IF(LeadData[[#This Row],[Πρόβλεψη \nΚλείσιμο]] <>\"\",IF(LeadData[[#This Row],[Πρόβλεψη \nΚλείσιμο]] = \"Αύγουστος\",LeadData[Σταθμισμένη \nΠρόβλεψη],0),\"\"),\"\")","v":{"v":0,"d":"0 €"}},{"$f":"IFERROR(IF(LeadData[[#This Row],[Πρόβλεψη \nΚλείσιμο]] <>\"\",IF(LeadData[[#This Row],[Πρόβλεψη \nΚλείσιμο]] = \"Σεπτέμβριος\",LeadData[Σταθμισμένη \nΠρόβλεψη],0),\"\"),\"\")","v":{"v":0,"d":"0 €"}},{"$f":"IFERROR(IF(LeadData[[#This Row],[Πρόβλεψη \nΚλείσιμο]] <>\"\",IF(LeadData[[#This Row],[Πρόβλεψη \nΚλείσιμο]] = \"Οκτώβριος\",LeadData[Σταθμισμένη \nΠρόβλεψη],0),\"\"),\"\")","v":{"v":0,"d":"0 €"}},{"$f":"IFERROR(IF(LeadData[[#This Row],[Πρόβλεψη \nΚλείσιμο]] <>\"\",IF(LeadData[[#This Row],[Πρόβλεψη \nΚλείσιμο]] = \"Νοέμβριος\",LeadData[Σταθμισμένη \nΠρόβλεψη],0),\"\"),\"\")","v":{"v":0,"d":"0 €"}},{"$f":"IFERROR(IF(LeadData[[#This Row],[Πρόβλεψη \nΚλείσιμο]] <>\"\",IF(LeadData[[#This Row],[Πρόβλεψη \nΚλείσιμο]] = \"Δεκέμβριος\",LeadData[Σταθμισμένη \nΠρόβλεψη],0),\"\"),\"\")","v":{"v":0,"d":"0 €"}}]
[null,{"$f":"IFERROR(IF(AND(LeadData[[#This Row],[Όνομα υποψήφιου πελάτη]] <> \"\", ROW(ForecastedSales[Όνομα υποψήφιου πελάτη])<>ΤελευταίαΚαταχώρηση),LeadData[Όνομα υποψήφιου πελάτη], \"\"),\"\")","v":"Alpine Ski House"},{"$f":"IFERROR(IF(LeadData[[#This Row],[Πρόβλεψη \nΚλείσιμο]] <>\"\",IF(LeadData[[#This Row],[Πρόβλεψη \nΚλείσιμο]]= \"Ιανουάριος\",LeadData[Σταθμισμένη \nΠρόβλεψη],0),\"\"),\"\")","v":{"v":0,"d":"0 €"}},{"$f":"IFERROR(IF(LeadData[[#This Row],[Πρόβλεψη \nΚλείσιμο]] <>\"\",IF(LeadData[[#This Row],[Πρόβλεψη \nΚλείσιμο]] = \"Φεβρουάριος\",LeadData[Σταθμισμένη \nΠρόβλεψη],0),\"\"),\"\")","v":{"v":0,"d":"0 €"}},{"$f":"IFERROR(IF(LeadData[[#This Row],[Πρόβλεψη \nΚλείσιμο]] <>\"\",IF(LeadData[[#This Row],[Πρόβλεψη \nΚλείσιμο]] = \"Μάρτιος\",LeadData[Σταθμισμένη \nΠρόβλεψη],0),\"\"),\"\")","v":{"v":20000,"d":"20,000 €"}},{"$f":"IFERROR(IF(LeadData[[#This Row],[Πρόβλεψη \nΚλείσιμο]] <>\"\",IF(LeadData[[#This Row],[Πρόβλεψη \nΚλείσιμο]] = \"Απρίλιος\",LeadData[Σταθμισμένη \nΠρόβλεψη],0),\"\"),\"\")","v":{"v":0,"d":"0 €"}},{"$f":"IFERROR(IF(LeadData[[#This Row],[Πρόβλεψη \nΚλείσιμο]] <>\"\",IF(LeadData[[#This Row],[Πρόβλεψη \nΚλείσιμο]] = \"Μάιος\",LeadData[Σταθμισμένη \nΠρόβλεψη],0),\"\"),\"\")","v":{"v":0,"d":"0 €"}},{"$f":"IFERROR(IF(LeadData[[#This Row],[Πρόβλεψη \nΚλείσιμο]] <>\"\",IF(LeadData[[#This Row],[Πρόβλεψη \nΚλείσιμο]] = \"Ιούνιος\",LeadData[Σταθμισμένη \nΠρόβλεψη],0),\"\"),\"\")","v":{"v":0,"d":"0 €"}},{"$f":"IFERROR(IF(LeadData[[#This Row],[Πρόβλεψη \nΚλείσιμο]] <>\"\",IF(LeadData[[#This Row],[Πρόβλεψη \nΚλείσιμο]] = \"Πρόβλεψη\",LeadData[Σταθμισμένη \nΠρόβλεψη],0),\"\"),\"\")","v":{"v":0,"d":"0 €"}},{"$f":"IFERROR(IF(LeadData[[#This Row],[Πρόβλεψη \nΚλείσιμο]] <>\"\",IF(LeadData[[#This Row],[Πρόβλεψη \nΚλείσιμο]] = \"Αύγουστος\",LeadData[Σταθμισμένη \nΠρόβλεψη],0),\"\"),\"\")","v":{"v":0,"d":"0 €"}},{"$f":"IFERROR(IF(LeadData[[#This Row],[Πρόβλεψη \nΚλείσιμο]] <>\"\",IF(LeadData[[#This Row],[Πρόβλεψη \nΚλείσιμο]] = \"Σεπτέμβριος\",LeadData[Σταθμισμένη \nΠρόβλεψη],0),\"\"),\"\")","v":{"v":0,"d":"0 €"}},{"$f":"IFERROR(IF(LeadData[[#This Row],[Πρόβλεψη \nΚλείσιμο]] <>\"\",IF(LeadData[[#This Row],[Πρόβλεψη \nΚλείσιμο]] = \"Οκτώβριος\",LeadData[Σταθμισμένη \nΠρόβλεψη],0),\"\"),\"\")","v":{"v":0,"d":"0 €"}},{"$f":"IFERROR(IF(LeadData[[#This Row],[Πρόβλεψη \nΚλείσιμο]] <>\"\",IF(LeadData[[#This Row],[Πρόβλεψη \nΚλείσιμο]] = \"Νοέμβριος\",LeadData[Σταθμισμένη \nΠρόβλεψη],0),\"\"),\"\")","v":{"v":0,"d":"0 €"}},{"$f":"IFERROR(IF(LeadData[[#This Row],[Πρόβλεψη \nΚλείσιμο]] <>\"\",IF(LeadData[[#This Row],[Πρόβλεψη \nΚλείσιμο]] = \"Δεκέμβριος\",LeadData[Σταθμισμένη \nΠρόβλεψη],0),\"\"),\"\")","v":{"v":0,"d":"0 €"}}]
[null,{"$f":"IFERROR(IF(AND(LeadData[[#This Row],[Όνομα υποψήφιου πελάτη]] <> \"\", ROW(ForecastedSales[Όνομα υποψήφιου πελάτη])<>ΤελευταίαΚαταχώρηση),LeadData[Όνομα υποψήφιου πελάτη], \"\"),\"\")","v":""},{"$f":"IFERROR(IF(LeadData[[#This Row],[Πρόβλεψη \nΚλείσιμο]] <>\"\",IF(LeadData[[#This Row],[Πρόβλεψη \nΚλείσιμο]]= \"Ιανουάριος\",LeadData[Σταθμισμένη \nΠρόβλεψη],0),\"\"),\"\")","v":""},{"$f":"IFERROR(IF(LeadData[[#This Row],[Πρόβλεψη \nΚλείσιμο]] <>\"\",IF(LeadData[[#This Row],[Πρόβλεψη \nΚλείσιμο]] = \"Φεβρουάριος\",LeadData[Σταθμισμένη \nΠρόβλεψη],0),\"\"),\"\")","v":""},{"$f":"IFERROR(IF(LeadData[[#This Row],[Πρόβλεψη \nΚλείσιμο]] <>\"\",IF(LeadData[[#This Row],[Πρόβλεψη \nΚλείσιμο]] = \"Μάρτιος\",LeadData[Σταθμισμένη \nΠρόβλεψη],0),\"\"),\"\")","v":""},{"$f":"IFERROR(IF(LeadData[[#This Row],[Πρόβλεψη \nΚλείσιμο]] <>\"\",IF(LeadData[[#This Row],[Πρόβλεψη \nΚλείσιμο]] = \"Απρίλιος\",LeadData[Σταθμισμένη \nΠρόβλεψη],0),\"\"),\"\")","v":""},{"$f":"IFERROR(IF(LeadData[[#This Row],[Πρόβλεψη \nΚλείσιμο]] <>\"\",IF(LeadData[[#This Row],[Πρόβλεψη \nΚλείσιμο]] = \"Μάιος\",LeadData[Σταθμισμένη \nΠρόβλεψη],0),\"\"),\"\")","v":""},{"$f":"IFERROR(IF(LeadData[[#This Row],[Πρόβλεψη \nΚλείσιμο]] <>\"\",IF(LeadData[[#This Row],[Πρόβλεψη \nΚλείσιμο]] = \"Ιούνιος\",LeadData[Σταθμισμένη \nΠρόβλεψη],0),\"\"),\"\")","v":""},{"$f":"IFERROR(IF(LeadData[[#This Row],[Πρόβλεψη \nΚλείσιμο]] <>\"\",IF(LeadData[[#This Row],[Πρόβλεψη \nΚλείσιμο]] = \"Πρόβλεψη\",LeadData[Σταθμισμένη \nΠρόβλεψη],0),\"\"),\"\")","v":""},{"$f":"IFERROR(IF(LeadData[[#This Row],[Πρόβλεψη \nΚλείσιμο]] <>\"\",IF(LeadData[[#This Row],[Πρόβλεψη \nΚλείσιμο]] = \"Αύγουστος\",LeadData[Σταθμισμένη \nΠρόβλεψη],0),\"\"),\"\")","v":""},{"$f":"IFERROR(IF(LeadData[[#This Row],[Πρόβλεψη \nΚλείσιμο]] <>\"\",IF(LeadData[[#This Row],[Πρόβλεψη \nΚλείσιμο]] = \"Σεπτέμβριος\",LeadData[Σταθμισμένη \nΠρόβλεψη],0),\"\"),\"\")","v":""},{"$f":"IFERROR(IF(LeadData[[#This Row],[Πρόβλεψη \nΚλείσιμο]] <>\"\",IF(LeadData[[#This Row],[Πρόβλεψη \nΚλείσιμο]] = \"Οκτώβριος\",LeadData[Σταθμισμένη \nΠρόβλεψη],0),\"\"),\"\")","v":""},{"$f":"IFERROR(IF(LeadData[[#This Row],[Πρόβλεψη \nΚλείσιμο]] <>\"\",IF(LeadData[[#This Row],[Πρόβλεψη \nΚλείσιμο]] = \"Νοέμβριος\",LeadData[Σταθμισμένη \nΠρόβλεψη],0),\"\"),\"\")","v":""},{"$f":"IFERROR(IF(LeadData[[#This Row],[Πρόβλεψη \nΚλείσιμο]] <>\"\",IF(LeadData[[#This Row],[Πρόβλεψη \nΚλείσιμο]] = \"Δεκέμβριος\",LeadData[Σταθμισμένη \nΠρόβλεψη],0),\"\"),\"\")","v":""}]
[null,{"$f":"IFERROR(IF(AND(LeadData[[#This Row],[Όνομα υποψήφιου πελάτη]] <> \"\", ROW(ForecastedSales[Όνομα υποψήφιου πελάτη])<>ΤελευταίαΚαταχώρηση),LeadData[Όνομα υποψήφιου πελάτη], \"\"),\"\")","v":""},{"$f":"IFERROR(IF(LeadData[[#This Row],[Πρόβλεψη \nΚλείσιμο]] <>\"\",IF(LeadData[[#This Row],[Πρόβλεψη \nΚλείσιμο]]= \"Ιανουάριος\",LeadData[Σταθμισμένη \nΠρόβλεψη],0),\"\"),\"\")","v":""},{"$f":"IFERROR(IF(LeadData[[#This Row],[Πρόβλεψη \nΚλείσιμο]] <>\"\",IF(LeadData[[#This Row],[Πρόβλεψη \nΚλείσιμο]] = \"Φεβρουάριος\",LeadData[Σταθμισμένη \nΠρόβλεψη],0),\"\"),\"\")","v":""},{"$f":"IFERROR(IF(LeadData[[#This Row],[Πρόβλεψη \nΚλείσιμο]] <>\"\",IF(LeadData[[#This Row],[Πρόβλεψη \nΚλείσιμο]] = \"Μάρτιος\",LeadData[Σταθμισμένη \nΠρόβλεψη],0),\"\"),\"\")","v":""},{"$f":"IFERROR(IF(LeadData[[#This Row],[Πρόβλεψη \nΚλείσιμο]] <>\"\",IF(LeadData[[#This Row],[Πρόβλεψη \nΚλείσιμο]] = \"Απρίλιος\",LeadData[Σταθμισμένη \nΠρόβλεψη],0),\"\"),\"\")","v":""},{"$f":"IFERROR(IF(LeadData[[#This Row],[Πρόβλεψη \nΚλείσιμο]] <>\"\",IF(LeadData[[#This Row],[Πρόβλεψη \nΚλείσιμο]] = \"Μάιος\",LeadData[Σταθμισμένη \nΠρόβλεψη],0),\"\"),\"\")","v":""},{"$f":"IFERROR(IF(LeadData[[#This Row],[Πρόβλεψη \nΚλείσιμο]] <>\"\",IF(LeadData[[#This Row],[Πρόβλεψη \nΚλείσιμο]] = \"Ιούνιος\",LeadData[Σταθμισμένη \nΠρόβλεψη],0),\"\"),\"\")","v":""},{"$f":"IFERROR(IF(LeadData[[#This Row],[Πρόβλεψη \nΚλείσιμο]] <>\"\",IF(LeadData[[#This Row],[Πρόβλεψη \nΚλείσιμο]] = \"Πρόβλεψη\",LeadData[Σταθμισμένη \nΠρόβλεψη],0),\"\"),\"\")","v":""},{"$f":"IFERROR(IF(LeadData[[#This Row],[Πρόβλεψη \nΚλείσιμο]] <>\"\",IF(LeadData[[#This Row],[Πρόβλεψη \nΚλείσιμο]] = \"Αύγουστος\",LeadData[Σταθμισμένη \nΠρόβλεψη],0),\"\"),\"\")","v":""},{"$f":"IFERROR(IF(LeadData[[#This Row],[Πρόβλεψη \nΚλείσιμο]] <>\"\",IF(LeadData[[#This Row],[Πρόβλεψη \nΚλείσιμο]] = \"Σεπτέμβριος\",LeadData[Σταθμισμένη \nΠρόβλεψη],0),\"\"),\"\")","v":""},{"$f":"IFERROR(IF(LeadData[[#This Row],[Πρόβλεψη \nΚλείσιμο]] <>\"\",IF(LeadData[[#This Row],[Πρόβλεψη \nΚλείσιμο]] = \"Οκτώβριος\",LeadData[Σταθμισμένη \nΠρόβλεψη],0),\"\"),\"\")","v":""},{"$f":"IFERROR(IF(LeadData[[#This Row],[Πρόβλεψη \nΚλείσιμο]] <>\"\",IF(LeadData[[#This Row],[Πρόβλεψη \nΚλείσιμο]] = \"Νοέμβριος\",LeadData[Σταθμισμένη \nΠρόβλεψη],0),\"\"),\"\")","v":""},{"$f":"IFERROR(IF(LeadData[[#This Row],[Πρόβλεψη \nΚλείσιμο]] <>\"\",IF(LeadData[[#This Row],[Πρόβλεψη \nΚλείσιμο]] = \"Δεκέμβριος\",LeadData[Σταθμισμένη \nΠρόβλεψη],0),\"\"),\"\")","v":""}]
[null,{"$f":"IFERROR(IF(AND(LeadData[[#This Row],[Όνομα υποψήφιου πελάτη]] <> \"\", ROW(ForecastedSales[Όνομα υποψήφιου πελάτη])<>ΤελευταίαΚαταχώρηση),LeadData[Όνομα υποψήφιου πελάτη], \"\"),\"\")","v":""},{"$f":"IFERROR(IF(LeadData[[#This Row],[Πρόβλεψη \nΚλείσιμο]] <>\"\",IF(LeadData[[#This Row],[Πρόβλεψη \nΚλείσιμο]]= \"Ιανουάριος\",LeadData[Σταθμισμένη \nΠρόβλεψη],0),\"\"),\"\")","v":""},{"$f":"IFERROR(IF(LeadData[[#This Row],[Πρόβλεψη \nΚλείσιμο]] <>\"\",IF(LeadData[[#This Row],[Πρόβλεψη \nΚλείσιμο]] = \"Φεβρουάριος\",LeadData[Σταθμισμένη \nΠρόβλεψη],0),\"\"),\"\")","v":""},{"$f":"IFERROR(IF(LeadData[[#This Row],[Πρόβλεψη \nΚλείσιμο]] <>\"\",IF(LeadData[[#This Row],[Πρόβλεψη \nΚλείσιμο]] = \"Μάρτιος\",LeadData[Σταθμισμένη \nΠρόβλεψη],0),\"\"),\"\")","v":""},{"$f":"IFERROR(IF(LeadData[[#This Row],[Πρόβλεψη \nΚλείσιμο]] <>\"\",IF(LeadData[[#This Row],[Πρόβλεψη \nΚλείσιμο]] = \"Απρίλιος\",LeadData[Σταθμισμένη \nΠρόβλεψη],0),\"\"),\"\")","v":""},{"$f":"IFERROR(IF(LeadData[[#This Row],[Πρόβλεψη \nΚλείσιμο]] <>\"\",IF(LeadData[[#This Row],[Πρόβλεψη \nΚλείσιμο]] = \"Μάιος\",LeadData[Σταθμισμένη \nΠρόβλεψη],0),\"\"),\"\")","v":""},{"$f":"IFERROR(IF(LeadData[[#This Row],[Πρόβλεψη \nΚλείσιμο]] <>\"\",IF(LeadData[[#This Row],[Πρόβλεψη \nΚλείσιμο]] = \"Ιούνιος\",LeadData[Σταθμισμένη \nΠρόβλεψη],0),\"\"),\"\")","v":""},{"$f":"IFERROR(IF(LeadData[[#This Row],[Πρόβλεψη \nΚλείσιμο]] <>\"\",IF(LeadData[[#This Row],[Πρόβλεψη \nΚλείσιμο]] = \"Πρόβλεψη\",LeadData[Σταθμισμένη \nΠρόβλεψη],0),\"\"),\"\")","v":""},{"$f":"IFERROR(IF(LeadData[[#This Row],[Πρόβλεψη \nΚλείσιμο]] <>\"\",IF(LeadData[[#This Row],[Πρόβλεψη \nΚλείσιμο]] = \"Αύγουστος\",LeadData[Σταθμισμένη \nΠρόβλεψη],0),\"\"),\"\")","v":""},{"$f":"IFERROR(IF(LeadData[[#This Row],[Πρόβλεψη \nΚλείσιμο]] <>\"\",IF(LeadData[[#This Row],[Πρόβλεψη \nΚλείσιμο]] = \"Σεπτέμβριος\",LeadData[Σταθμισμένη \nΠρόβλεψη],0),\"\"),\"\")","v":""},{"$f":"IFERROR(IF(LeadData[[#This Row],[Πρόβλεψη \nΚλείσιμο]] <>\"\",IF(LeadData[[#This Row],[Πρόβλεψη \nΚλείσιμο]] = \"Οκτώβριος\",LeadData[Σταθμισμένη \nΠρόβλεψη],0),\"\"),\"\")","v":""},{"$f":"IFERROR(IF(LeadData[[#This Row],[Πρόβλεψη \nΚλείσιμο]] <>\"\",IF(LeadData[[#This Row],[Πρόβλεψη \nΚλείσιμο]] = \"Νοέμβριος\",LeadData[Σταθμισμένη \nΠρόβλεψη],0),\"\"),\"\")","v":""},{"$f":"IFERROR(IF(LeadData[[#This Row],[Πρόβλεψη \nΚλείσιμο]] <>\"\",IF(LeadData[[#This Row],[Πρόβλεψη \nΚλείσιμο]] = \"Δεκέμβριος\",LeadData[Σταθμισμένη \nΠρόβλεψη],0),\"\"),\"\")","v":""}]
[null,{"$f":"IFERROR(IF(AND(LeadData[[#This Row],[Όνομα υποψήφιου πελάτη]] <> \"\", ROW(ForecastedSales[Όνομα υποψήφιου πελάτη])<>ΤελευταίαΚαταχώρηση),LeadData[Όνομα υποψήφιου πελάτη], \"\"),\"\")","v":""},{"$f":"IFERROR(IF(LeadData[[#This Row],[Πρόβλεψη \nΚλείσιμο]] <>\"\",IF(LeadData[[#This Row],[Πρόβλεψη \nΚλείσιμο]]= \"Ιανουάριος\",LeadData[Σταθμισμένη \nΠρόβλεψη],0),\"\"),\"\")","v":""},{"$f":"IFERROR(IF(LeadData[[#This Row],[Πρόβλεψη \nΚλείσιμο]] <>\"\",IF(LeadData[[#This Row],[Πρόβλεψη \nΚλείσιμο]] = \"Φεβρουάριος\",LeadData[Σταθμισμένη \nΠρόβλεψη],0),\"\"),\"\")","v":""},{"$f":"IFERROR(IF(LeadData[[#This Row],[Πρόβλεψη \nΚλείσιμο]] <>\"\",IF(LeadData[[#This Row],[Πρόβλεψη \nΚλείσιμο]] = \"Μάρτιος\",LeadData[Σταθμισμένη \nΠρόβλεψη],0),\"\"),\"\")","v":""},{"$f":"IFERROR(IF(LeadData[[#This Row],[Πρόβλεψη \nΚλείσιμο]] <>\"\",IF(LeadData[[#This Row],[Πρόβλεψη \nΚλείσιμο]] = \"Απρίλιος\",LeadData[Σταθμισμένη \nΠρόβλεψη],0),\"\"),\"\")","v":""},{"$f":"IFERROR(IF(LeadData[[#This Row],[Πρόβλεψη \nΚλείσιμο]] <>\"\",IF(LeadData[[#This Row],[Πρόβλεψη \nΚλείσιμο]] = \"Μάιος\",LeadData[Σταθμισμένη \nΠρόβλεψη],0),\"\"),\"\")","v":""},{"$f":"IFERROR(IF(LeadData[[#This Row],[Πρόβλεψη \nΚλείσιμο]] <>\"\",IF(LeadData[[#This Row],[Πρόβλεψη \nΚλείσιμο]] = \"Ιούνιος\",LeadData[Σταθμισμένη \nΠρόβλεψη],0),\"\"),\"\")","v":""},{"$f":"IFERROR(IF(LeadData[[#This Row],[Πρόβλεψη \nΚλείσιμο]] <>\"\",IF(LeadData[[#This Row],[Πρόβλεψη \nΚλείσιμο]] = \"Πρόβλεψη\",LeadData[Σταθμισμένη \nΠρόβλεψη],0),\"\"),\"\")","v":""},{"$f":"IFERROR(IF(LeadData[[#This Row],[Πρόβλεψη \nΚλείσιμο]] <>\"\",IF(LeadData[[#This Row],[Πρόβλεψη \nΚλείσιμο]] = \"Αύγουστος\",LeadData[Σταθμισμένη \nΠρόβλεψη],0),\"\"),\"\")","v":""},{"$f":"IFERROR(IF(LeadData[[#This Row],[Πρόβλεψη \nΚλείσιμο]] <>\"\",IF(LeadData[[#This Row],[Πρόβλεψη \nΚλείσιμο]] = \"Σεπτέμβριος\",LeadData[Σταθμισμένη \nΠρόβλεψη],0),\"\"),\"\")","v":""},{"$f":"IFERROR(IF(LeadData[[#This Row],[Πρόβλεψη \nΚλείσιμο]] <>\"\",IF(LeadData[[#This Row],[Πρόβλεψη \nΚλείσιμο]] = \"Οκτώβριος\",LeadData[Σταθμισμένη \nΠρόβλεψη],0),\"\"),\"\")","v":""},{"$f":"IFERROR(IF(LeadData[[#This Row],[Πρόβλεψη \nΚλείσιμο]] <>\"\",IF(LeadData[[#This Row],[Πρόβλεψη \nΚλείσιμο]] = \"Νοέμβριος\",LeadData[Σταθμισμένη \nΠρόβλεψη],0),\"\"),\"\")","v":""},{"$f":"IFERROR(IF(LeadData[[#This Row],[Πρόβλεψη \nΚλείσιμο]] <>\"\",IF(LeadData[[#This Row],[Πρόβλεψη \nΚλείσιμο]] = \"Δεκέμβριος\",LeadData[Σταθμισμένη \nΠρόβλεψη],0),\"\"),\"\")","v":""}]
[null,{"$f":"IFERROR(IF(AND(LeadData[[#This Row],[Όνομα υποψήφιου πελάτη]] <> \"\", ROW(ForecastedSales[Όνομα υποψήφιου πελάτη])<>ΤελευταίαΚαταχώρηση),LeadData[Όνομα υποψήφιου πελάτη], \"\"),\"\")","v":""},{"$f":"IFERROR(IF(LeadData[[#This Row],[Πρόβλεψη \nΚλείσιμο]] <>\"\",IF(LeadData[[#This Row],[Πρόβλεψη \nΚλείσιμο]]= \"Ιανουάριος\",LeadData[Σταθμισμένη \nΠρόβλεψη],0),\"\"),\"\")","v":""},{"$f":"IFERROR(IF(LeadData[[#This Row],[Πρόβλεψη \nΚλείσιμο]] <>\"\",IF(LeadData[[#This Row],[Πρόβλεψη \nΚλείσιμο]] = \"Φεβρουάριος\",LeadData[Σταθμισμένη \nΠρόβλεψη],0),\"\"),\"\")","v":""},{"$f":"IFERROR(IF(LeadData[[#This Row],[Πρόβλεψη \nΚλείσιμο]] <>\"\",IF(LeadData[[#This Row],[Πρόβλεψη \nΚλείσιμο]] = \"Μάρτιος\",LeadData[Σταθμισμένη \nΠρόβλεψη],0),\"\"),\"\")","v":""},{"$f":"IFERROR(IF(LeadData[[#This Row],[Πρόβλεψη \nΚλείσιμο]] <>\"\",IF(LeadData[[#This Row],[Πρόβλεψη \nΚλείσιμο]] = \"Απρίλιος\",LeadData[Σταθμισμένη \nΠρόβλεψη],0),\"\"),\"\")","v":""},{"$f":"IFERROR(IF(LeadData[[#This Row],[Πρόβλεψη \nΚλείσιμο]] <>\"\",IF(LeadData[[#This Row],[Πρόβλεψη \nΚλείσιμο]] = \"Μάιος\",LeadData[Σταθμισμένη \nΠρόβλεψη],0),\"\"),\"\")","v":""},{"$f":"IFERROR(IF(LeadData[[#This Row],[Πρόβλεψη \nΚλείσιμο]] <>\"\",IF(LeadData[[#This Row],[Πρόβλεψη \nΚλείσιμο]] = \"Ιούνιος\",LeadData[Σταθμισμένη \nΠρόβλεψη],0),\"\"),\"\")","v":""},{"$f":"IFERROR(IF(LeadData[[#This Row],[Πρόβλεψη \nΚλείσιμο]] <>\"\",IF(LeadData[[#This Row],[Πρόβλεψη \nΚλείσιμο]] = \"Πρόβλεψη\",LeadData[Σταθμισμένη \nΠρόβλεψη],0),\"\"),\"\")","v":""},{"$f":"IFERROR(IF(LeadData[[#This Row],[Πρόβλεψη \nΚλείσιμο]] <>\"\",IF(LeadData[[#This Row],[Πρόβλεψη \nΚλείσιμο]] = \"Αύγουστος\",LeadData[Σταθμισμένη \nΠρόβλεψη],0),\"\"),\"\")","v":""},{"$f":"IFERROR(IF(LeadData[[#This Row],[Πρόβλεψη \nΚλείσιμο]] <>\"\",IF(LeadData[[#This Row],[Πρόβλεψη \nΚλείσιμο]] = \"Σεπτέμβριος\",LeadData[Σταθμισμένη \nΠρόβλεψη],0),\"\"),\"\")","v":""},{"$f":"IFERROR(IF(LeadData[[#This Row],[Πρόβλεψη \nΚλείσιμο]] <>\"\",IF(LeadData[[#This Row],[Πρόβλεψη \nΚλείσιμο]] = \"Οκτώβριος\",LeadData[Σταθμισμένη \nΠρόβλεψη],0),\"\"),\"\")","v":""},{"$f":"IFERROR(IF(LeadData[[#This Row],[Πρόβλεψη \nΚλείσιμο]] <>\"\",IF(LeadData[[#This Row],[Πρόβλεψη \nΚλείσιμο]] = \"Νοέμβριος\",LeadData[Σταθμισμένη \nΠρόβλεψη],0),\"\"),\"\")","v":""},{"$f":"IFERROR(IF(LeadData[[#This Row],[Πρόβλεψη \nΚλείσιμο]] <>\"\",IF(LeadData[[#This Row],[Πρόβλεψη \nΚλείσιμο]] = \"Δεκέμβριος\",LeadData[Σταθμισμένη \nΠρόβλεψη],0),\"\"),\"\")","v":""}]
[null,{"$f":"IFERROR(IF(AND(LeadData[[#This Row],[Όνομα υποψήφιου πελάτη]] <> \"\", ROW(ForecastedSales[Όνομα υποψήφιου πελάτη])<>ΤελευταίαΚαταχώρηση),LeadData[Όνομα υποψήφιου πελάτη], \"\"),\"\")","v":""},{"$f":"IFERROR(IF(LeadData[[#This Row],[Πρόβλεψη \nΚλείσιμο]] <>\"\",IF(LeadData[[#This Row],[Πρόβλεψη \nΚλείσιμο]]= \"Ιανουάριος\",LeadData[Σταθμισμένη \nΠρόβλεψη],0),\"\"),\"\")","v":""},{"$f":"IFERROR(IF(LeadData[[#This Row],[Πρόβλεψη \nΚλείσιμο]] <>\"\",IF(LeadData[[#This Row],[Πρόβλεψη \nΚλείσιμο]] = \"Φεβρουάριος\",LeadData[Σταθμισμένη \nΠρόβλεψη],0),\"\"),\"\")","v":""},{"$f":"IFERROR(IF(LeadData[[#This Row],[Πρόβλεψη \nΚλείσιμο]] <>\"\",IF(LeadData[[#This Row],[Πρόβλεψη \nΚλείσιμο]] = \"Μάρτιος\",LeadData[Σταθμισμένη \nΠρόβλεψη],0),\"\"),\"\")","v":""},{"$f":"IFERROR(IF(LeadData[[#This Row],[Πρόβλεψη \nΚλείσιμο]] <>\"\",IF(LeadData[[#This Row],[Πρόβλεψη \nΚλείσιμο]] = \"Απρίλιος\",LeadData[Σταθμισμένη \nΠρόβλεψη],0),\"\"),\"\")","v":""},{"$f":"IFERROR(IF(LeadData[[#This Row],[Πρόβλεψη \nΚλείσιμο]] <>\"\",IF(LeadData[[#This Row],[Πρόβλεψη \nΚλείσιμο]] = \"Μάιος\",LeadData[Σταθμισμένη \nΠρόβλεψη],0),\"\"),\"\")","v":""},{"$f":"IFERROR(IF(LeadData[[#This Row],[Πρόβλεψη \nΚλείσιμο]] <>\"\",IF(LeadData[[#This Row],[Πρόβλεψη \nΚλείσιμο]] = \"Ιούνιος\",LeadData[Σταθμισμένη \nΠρόβλεψη],0),\"\"),\"\")","v":""},{"$f":"IFERROR(IF(LeadData[[#This Row],[Πρόβλεψη \nΚλείσιμο]] <>\"\",IF(LeadData[[#This Row],[Πρόβλεψη \nΚλείσιμο]] = \"Πρόβλεψη\",LeadData[Σταθμισμένη \nΠρόβλεψη],0),\"\"),\"\")","v":""},{"$f":"IFERROR(IF(LeadData[[#This Row],[Πρόβλεψη \nΚλείσιμο]] <>\"\",IF(LeadData[[#This Row],[Πρόβλεψη \nΚλείσιμο]] = \"Αύγουστος\",LeadData[Σταθμισμένη \nΠρόβλεψη],0),\"\"),\"\")","v":""},{"$f":"IFERROR(IF(LeadData[[#This Row],[Πρόβλεψη \nΚλείσιμο]] <>\"\",IF(LeadData[[#This Row],[Πρόβλεψη \nΚλείσιμο]] = \"Σεπτέμβριος\",LeadData[Σταθμισμένη \nΠρόβλεψη],0),\"\"),\"\")","v":""},{"$f":"IFERROR(IF(LeadData[[#This Row],[Πρόβλεψη \nΚλείσιμο]] <>\"\",IF(LeadData[[#This Row],[Πρόβλεψη \nΚλείσιμο]] = \"Οκτώβριος\",LeadData[Σταθμισμένη \nΠρόβλεψη],0),\"\"),\"\")","v":""},{"$f":"IFERROR(IF(LeadData[[#This Row],[Πρόβλεψη \nΚλείσιμο]] <>\"\",IF(LeadData[[#This Row],[Πρόβλεψη \nΚλείσιμο]] = \"Νοέμβριος\",LeadData[Σταθμισμένη \nΠρόβλεψη],0),\"\"),\"\")","v":""},{"$f":"IFERROR(IF(LeadData[[#This Row],[Πρόβλεψη \nΚλείσιμο]] <>\"\",IF(LeadData[[#This Row],[Πρόβλεψη \nΚλείσιμο]] = \"Δεκέμβριος\",LeadData[Σταθμισμένη \nΠρόβλεψη],0),\"\"),\"\")","v":""}]
[null,{"$f":"IFERROR(IF(AND(LeadData[[#This Row],[Όνομα υποψήφιου πελάτη]] <> \"\", ROW(ForecastedSales[Όνομα υποψήφιου πελάτη])<>ΤελευταίαΚαταχώρηση),LeadData[Όνομα υποψήφιου πελάτη], \"\"),\"\")","v":""},{"$f":"IFERROR(IF(LeadData[[#This Row],[Πρόβλεψη \nΚλείσιμο]] <>\"\",IF(LeadData[[#This Row],[Πρόβλεψη \nΚλείσιμο]]= \"Ιανουάριος\",LeadData[Σταθμισμένη \nΠρόβλεψη],0),\"\"),\"\")","v":""},{"$f":"IFERROR(IF(LeadData[[#This Row],[Πρόβλεψη \nΚλείσιμο]] <>\"\",IF(LeadData[[#This Row],[Πρόβλεψη \nΚλείσιμο]] = \"Φεβρουάριος\",LeadData[Σταθμισμένη \nΠρόβλεψη],0),\"\"),\"\")","v":""},{"$f":"IFERROR(IF(LeadData[[#This Row],[Πρόβλεψη \nΚλείσιμο]] <>\"\",IF(LeadData[[#This Row],[Πρόβλεψη \nΚλείσιμο]] = \"Μάρτιος\",LeadData[Σταθμισμένη \nΠρόβλεψη],0),\"\"),\"\")","v":""},{"$f":"IFERROR(IF(LeadData[[#This Row],[Πρόβλεψη \nΚλείσιμο]] <>\"\",IF(LeadData[[#This Row],[Πρόβλεψη \nΚλείσιμο]] = \"Απρίλιος\",LeadData[Σταθμισμένη \nΠρόβλεψη],0),\"\"),\"\")","v":""},{"$f":"IFERROR(IF(LeadData[[#This Row],[Πρόβλεψη \nΚλείσιμο]] <>\"\",IF(LeadData[[#This Row],[Πρόβλεψη \nΚλείσιμο]] = \"Μάιος\",LeadData[Σταθμισμένη \nΠρόβλεψη],0),\"\"),\"\")","v":""},{"$f":"IFERROR(IF(LeadData[[#This Row],[Πρόβλεψη \nΚλείσιμο]] <>\"\",IF(LeadData[[#This Row],[Πρόβλεψη \nΚλείσιμο]] = \"Ιούνιος\",LeadData[Σταθμισμένη \nΠρόβλεψη],0),\"\"),\"\")","v":""},{"$f":"IFERROR(IF(LeadData[[#This Row],[Πρόβλεψη \nΚλείσιμο]] <>\"\",IF(LeadData[[#This Row],[Πρόβλεψη \nΚλείσιμο]] = \"Πρόβλεψη\",LeadData[Σταθμισμένη \nΠρόβλεψη],0),\"\"),\"\")","v":""},{"$f":"IFERROR(IF(LeadData[[#This Row],[Πρόβλεψη \nΚλείσιμο]] <>\"\",IF(LeadData[[#This Row],[Πρόβλεψη \nΚλείσιμο]] = \"Αύγουστος\",LeadData[Σταθμισμένη \nΠρόβλεψη],0),\"\"),\"\")","v":""},{"$f":"IFERROR(IF(LeadData[[#This Row],[Πρόβλεψη \nΚλείσιμο]] <>\"\",IF(LeadData[[#This Row],[Πρόβλεψη \nΚλείσιμο]] = \"Σεπτέμβριος\",LeadData[Σταθμισμένη \nΠρόβλεψη],0),\"\"),\"\")","v":""},{"$f":"IFERROR(IF(LeadData[[#This Row],[Πρόβλεψη \nΚλείσιμο]] <>\"\",IF(LeadData[[#This Row],[Πρόβλεψη \nΚλείσιμο]] = \"Οκτώβριος\",LeadData[Σταθμισμένη \nΠρόβλεψη],0),\"\"),\"\")","v":""},{"$f":"IFERROR(IF(LeadData[[#This Row],[Πρόβλεψη \nΚλείσιμο]] <>\"\",IF(LeadData[[#This Row],[Πρόβλεψη \nΚλείσιμο]] = \"Νοέμβριος\",LeadData[Σταθμισμένη \nΠρόβλεψη],0),\"\"),\"\")","v":""},{"$f":"IFERROR(IF(LeadData[[#This Row],[Πρόβλεψη \nΚλείσιμο]] <>\"\",IF(LeadData[[#This Row],[Πρόβλεψη \nΚλείσιμο]] = \"Δεκέμβριος\",LeadData[Σταθμισμένη \nΠρόβλεψη],0),\"\"),\"\")","v":""}]
[null,{"$f":"IFERROR(IF(AND(LeadData[[#This Row],[Όνομα υποψήφιου πελάτη]] <> \"\", ROW(ForecastedSales[Όνομα υποψήφιου πελάτη])<>ΤελευταίαΚαταχώρηση),LeadData[Όνομα υποψήφιου πελάτη], \"\"),\"\")","v":""},{"$f":"IFERROR(IF(LeadData[[#This Row],[Πρόβλεψη \nΚλείσιμο]] <>\"\",IF(LeadData[[#This Row],[Πρόβλεψη \nΚλείσιμο]]= \"Ιανουάριος\",LeadData[Σταθμισμένη \nΠρόβλεψη],0),\"\"),\"\")","v":""},{"$f":"IFERROR(IF(LeadData[[#This Row],[Πρόβλεψη \nΚλείσιμο]] <>\"\",IF(LeadData[[#This Row],[Πρόβλεψη \nΚλείσιμο]] = \"Φεβρουάριος\",LeadData[Σταθμισμένη \nΠρόβλεψη],0),\"\"),\"\")","v":""},{"$f":"IFERROR(IF(LeadData[[#This Row],[Πρόβλεψη \nΚλείσιμο]] <>\"\",IF(LeadData[[#This Row],[Πρόβλεψη \nΚλείσιμο]] = \"Μάρτιος\",LeadData[Σταθμισμένη \nΠρόβλεψη],0),\"\"),\"\")","v":""},{"$f":"IFERROR(IF(LeadData[[#This Row],[Πρόβλεψη \nΚλείσιμο]] <>\"\",IF(LeadData[[#This Row],[Πρόβλεψη \nΚλείσιμο]] = \"Απρίλιος\",LeadData[Σταθμισμένη \nΠρόβλεψη],0),\"\"),\"\")","v":""},{"$f":"IFERROR(IF(LeadData[[#This Row],[Πρόβλεψη \nΚλείσιμο]] <>\"\",IF(LeadData[[#This Row],[Πρόβλεψη \nΚλείσιμο]] = \"Μάιος\",LeadData[Σταθμισμένη \nΠρόβλεψη],0),\"\"),\"\")","v":""},{"$f":"IFERROR(IF(LeadData[[#This Row],[Πρόβλεψη \nΚλείσιμο]] <>\"\",IF(LeadData[[#This Row],[Πρόβλεψη \nΚλείσιμο]] = \"Ιούνιος\",LeadData[Σταθμισμένη \nΠρόβλεψη],0),\"\"),\"\")","v":""},{"$f":"IFERROR(IF(LeadData[[#This Row],[Πρόβλεψη \nΚλείσιμο]] <>\"\",IF(LeadData[[#This Row],[Πρόβλεψη \nΚλείσιμο]] = \"Πρόβλεψη\",LeadData[Σταθμισμένη \nΠρόβλεψη],0),\"\"),\"\")","v":""},{"$f":"IFERROR(IF(LeadData[[#This Row],[Πρόβλεψη \nΚλείσιμο]] <>\"\",IF(LeadData[[#This Row],[Πρόβλεψη \nΚλείσιμο]] = \"Αύγουστος\",LeadData[Σταθμισμένη \nΠρόβλεψη],0),\"\"),\"\")","v":""},{"$f":"IFERROR(IF(LeadData[[#This Row],[Πρόβλεψη \nΚλείσιμο]] <>\"\",IF(LeadData[[#This Row],[Πρόβλεψη \nΚλείσιμο]] = \"Σεπτέμβριος\",LeadData[Σταθμισμένη \nΠρόβλεψη],0),\"\"),\"\")","v":""},{"$f":"IFERROR(IF(LeadData[[#This Row],[Πρόβλεψη \nΚλείσιμο]] <>\"\",IF(LeadData[[#This Row],[Πρόβλεψη \nΚλείσιμο]] = \"Οκτώβριος\",LeadData[Σταθμισμένη \nΠρόβλεψη],0),\"\"),\"\")","v":""},{"$f":"IFERROR(IF(LeadData[[#This Row],[Πρόβλεψη \nΚλείσιμο]] <>\"\",IF(LeadData[[#This Row],[Πρόβλεψη \nΚλείσιμο]] = \"Νοέμβριος\",LeadData[Σταθμισμένη \nΠρόβλεψη],0),\"\"),\"\")","v":""},{"$f":"IFERROR(IF(LeadData[[#This Row],[Πρόβλεψη \nΚλείσιμο]] <>\"\",IF(LeadData[[#This Row],[Πρόβλεψη \nΚλείσιμο]] = \"Δεκέμβριος\",LeadData[Σταθμισμένη \nΠρόβλεψη],0),\"\"),\"\")","v":""}]
[null,{"$f":"IFERROR(IF(AND(LeadData[[#This Row],[Όνομα υποψήφιου πελάτη]] <> \"\", ROW(ForecastedSales[Όνομα υποψήφιου πελάτη])<>ΤελευταίαΚαταχώρηση),LeadData[Όνομα υποψήφιου πελάτη], \"\"),\"\")","v":""},{"$f":"IFERROR(IF(LeadData[[#This Row],[Πρόβλεψη \nΚλείσιμο]] <>\"\",IF(LeadData[[#This Row],[Πρόβλεψη \nΚλείσιμο]]= \"Ιανουάριος\",LeadData[Σταθμισμένη \nΠρόβλεψη],0),\"\"),\"\")","v":""},{"$f":"IFERROR(IF(LeadData[[#This Row],[Πρόβλεψη \nΚλείσιμο]] <>\"\",IF(LeadData[[#This Row],[Πρόβλεψη \nΚλείσιμο]] = \"Φεβρουάριος\",LeadData[Σταθμισμένη \nΠρόβλεψη],0),\"\"),\"\")","v":""},{"$f":"IFERROR(IF(LeadData[[#This Row],[Πρόβλεψη \nΚλείσιμο]] <>\"\",IF(LeadData[[#This Row],[Πρόβλεψη \nΚλείσιμο]] = \"Μάρτιος\",LeadData[Σταθμισμένη \nΠρόβλεψη],0),\"\"),\"\")","v":""},{"$f":"IFERROR(IF(LeadData[[#This Row],[Πρόβλεψη \nΚλείσιμο]] <>\"\",IF(LeadData[[#This Row],[Πρόβλεψη \nΚλείσιμο]] = \"Απρίλιος\",LeadData[Σταθμισμένη \nΠρόβλεψη],0),\"\"),\"\")","v":""},{"$f":"IFERROR(IF(LeadData[[#This Row],[Πρόβλεψη \nΚλείσιμο]] <>\"\",IF(LeadData[[#This Row],[Πρόβλεψη \nΚλείσιμο]] = \"Μάιος\",LeadData[Σταθμισμένη \nΠρόβλεψη],0),\"\"),\"\")","v":""},{"$f":"IFERROR(IF(LeadData[[#This Row],[Πρόβλεψη \nΚλείσιμο]] <>\"\",IF(LeadData[[#This Row],[Πρόβλεψη \nΚλείσιμο]] = \"Ιούνιος\",LeadData[Σταθμισμένη \nΠρόβλεψη],0),\"\"),\"\")","v":""},{"$f":"IFERROR(IF(LeadData[[#This Row],[Πρόβλεψη \nΚλείσιμο]] <>\"\",IF(LeadData[[#This Row],[Πρόβλεψη \nΚλείσιμο]] = \"Πρόβλεψη\",LeadData[Σταθμισμένη \nΠρόβλεψη],0),\"\"),\"\")","v":""},{"$f":"IFERROR(IF(LeadData[[#This Row],[Πρόβλεψη \nΚλείσιμο]] <>\"\",IF(LeadData[[#This Row],[Πρόβλεψη \nΚλείσιμο]] = \"Αύγουστος\",LeadData[Σταθμισμένη \nΠρόβλεψη],0),\"\"),\"\")","v":""},{"$f":"IFERROR(IF(LeadData[[#This Row],[Πρόβλεψη \nΚλείσιμο]] <>\"\",IF(LeadData[[#This Row],[Πρόβλεψη \nΚλείσιμο]] = \"Σεπτέμβριος\",LeadData[Σταθμισμένη \nΠρόβλεψη],0),\"\"),\"\")","v":""},{"$f":"IFERROR(IF(LeadData[[#This Row],[Πρόβλεψη \nΚλείσιμο]] <>\"\",IF(LeadData[[#This Row],[Πρόβλεψη \nΚλείσιμο]] = \"Οκτώβριος\",LeadData[Σταθμισμένη \nΠρόβλεψη],0),\"\"),\"\")","v":""},{"$f":"IFERROR(IF(LeadData[[#This Row],[Πρόβλεψη \nΚλείσιμο]] <>\"\",IF(LeadData[[#This Row],[Πρόβλεψη \nΚλείσιμο]] = \"Νοέμβριος\",LeadData[Σταθμισμένη \nΠρόβλεψη],0),\"\"),\"\")","v":""},{"$f":"IFERROR(IF(LeadData[[#This Row],[Πρόβλεψη \nΚλείσιμο]] <>\"\",IF(LeadData[[#This Row],[Πρόβλεψη \nΚλείσιμο]] = \"Δεκέμβριος\",LeadData[Σταθμισμένη \nΠρόβλεψη],0),\"\"),\"\")","v":""}]
[null,{"$f":"IFERROR(IF(AND(LeadData[[#This Row],[Όνομα υποψήφιου πελάτη]] <> \"\", ROW(ForecastedSales[Όνομα υποψήφιου πελάτη])<>ΤελευταίαΚαταχώρηση),LeadData[Όνομα υποψήφιου πελάτη], \"\"),\"\")","v":""},{"$f":"IFERROR(IF(LeadData[[#This Row],[Πρόβλεψη \nΚλείσιμο]] <>\"\",IF(LeadData[[#This Row],[Πρόβλεψη \nΚλείσιμο]]= \"Ιανουάριος\",LeadData[Σταθμισμένη \nΠρόβλεψη],0),\"\"),\"\")","v":""},{"$f":"IFERROR(IF(LeadData[[#This Row],[Πρόβλεψη \nΚλείσιμο]] <>\"\",IF(LeadData[[#This Row],[Πρόβλεψη \nΚλείσιμο]] = \"Φεβρουάριος\",LeadData[Σταθμισμένη \nΠρόβλεψη],0),\"\"),\"\")","v":""},{"$f":"IFERROR(IF(LeadData[[#This Row],[Πρόβλεψη \nΚλείσιμο]] <>\"\",IF(LeadData[[#This Row],[Πρόβλεψη \nΚλείσιμο]] = \"Μάρτιος\",LeadData[Σταθμισμένη \nΠρόβλεψη],0),\"\"),\"\")","v":""},{"$f":"IFERROR(IF(LeadData[[#This Row],[Πρόβλεψη \nΚλείσιμο]] <>\"\",IF(LeadData[[#This Row],[Πρόβλεψη \nΚλείσιμο]] = \"Απρίλιος\",LeadData[Σταθμισμένη \nΠρόβλεψη],0),\"\"),\"\")","v":""},{"$f":"IFERROR(IF(LeadData[[#This Row],[Πρόβλεψη \nΚλείσιμο]] <>\"\",IF(LeadData[[#This Row],[Πρόβλεψη \nΚλείσιμο]] = \"Μάιος\",LeadData[Σταθμισμένη \nΠρόβλεψη],0),\"\"),\"\")","v":""},{"$f":"IFERROR(IF(LeadData[[#This Row],[Πρόβλεψη \nΚλείσιμο]] <>\"\",IF(LeadData[[#This Row],[Πρόβλεψη \nΚλείσιμο]] = \"Ιούνιος\",LeadData[Σταθμισμένη \nΠρόβλεψη],0),\"\"),\"\")","v":""},{"$f":"IFERROR(IF(LeadData[[#This Row],[Πρόβλεψη \nΚλείσιμο]] <>\"\",IF(LeadData[[#This Row],[Πρόβλεψη \nΚλείσιμο]] = \"Πρόβλεψη\",LeadData[Σταθμισμένη \nΠρόβλεψη],0),\"\"),\"\")","v":""},{"$f":"IFERROR(IF(LeadData[[#This Row],[Πρόβλεψη \nΚλείσιμο]] <>\"\",IF(LeadData[[#This Row],[Πρόβλεψη \nΚλείσιμο]] = \"Αύγουστος\",LeadData[Σταθμισμένη \nΠρόβλεψη],0),\"\"),\"\")","v":""},{"$f":"IFERROR(IF(LeadData[[#This Row],[Πρόβλεψη \nΚλείσιμο]] <>\"\",IF(LeadData[[#This Row],[Πρόβλεψη \nΚλείσιμο]] = \"Σεπτέμβριος\",LeadData[Σταθμισμένη \nΠρόβλεψη],0),\"\"),\"\")","v":""},{"$f":"IFERROR(IF(LeadData[[#This Row],[Πρόβλεψη \nΚλείσιμο]] <>\"\",IF(LeadData[[#This Row],[Πρόβλεψη \nΚλείσιμο]] = \"Οκτώβριος\",LeadData[Σταθμισμένη \nΠρόβλεψη],0),\"\"),\"\")","v":""},{"$f":"IFERROR(IF(LeadData[[#This Row],[Πρόβλεψη \nΚλείσιμο]] <>\"\",IF(LeadData[[#This Row],[Πρόβλεψη \nΚλείσιμο]] = \"Νοέμβριος\",LeadData[Σταθμισμένη \nΠρόβλεψη],0),\"\"),\"\")","v":""},{"$f":"IFERROR(IF(LeadData[[#This Row],[Πρόβλεψη \nΚλείσιμο]] <>\"\",IF(LeadData[[#This Row],[Πρόβλεψη \nΚλείσιμο]] = \"Δεκέμβριος\",LeadData[Σταθμισμένη \nΠρόβλεψη],0),\"\"),\"\")","v":""}]
[null,{"$f":"IFERROR(IF(AND(LeadData[[#This Row],[Όνομα υποψήφιου πελάτη]] <> \"\", ROW(ForecastedSales[Όνομα υποψήφιου πελάτη])<>ΤελευταίαΚαταχώρηση),LeadData[Όνομα υποψήφιου πελάτη], \"\"),\"\")","v":""},{"$f":"IFERROR(IF(LeadData[[#This Row],[Πρόβλεψη \nΚλείσιμο]] <>\"\",IF(LeadData[[#This Row],[Πρόβλεψη \nΚλείσιμο]]= \"Ιανουάριος\",LeadData[Σταθμισμένη \nΠρόβλεψη],0),\"\"),\"\")","v":""},{"$f":"IFERROR(IF(LeadData[[#This Row],[Πρόβλεψη \nΚλείσιμο]] <>\"\",IF(LeadData[[#This Row],[Πρόβλεψη \nΚλείσιμο]] = \"Φεβρουάριος\",LeadData[Σταθμισμένη \nΠρόβλεψη],0),\"\"),\"\")","v":""},{"$f":"IFERROR(IF(LeadData[[#This Row],[Πρόβλεψη \nΚλείσιμο]] <>\"\",IF(LeadData[[#This Row],[Πρόβλεψη \nΚλείσιμο]] = \"Μάρτιος\",LeadData[Σταθμισμένη \nΠρόβλεψη],0),\"\"),\"\")","v":""},{"$f":"IFERROR(IF(LeadData[[#This Row],[Πρόβλεψη \nΚλείσιμο]] <>\"\",IF(LeadData[[#This Row],[Πρόβλεψη \nΚλείσιμο]] = \"Απρίλιος\",LeadData[Σταθμισμένη \nΠρόβλεψη],0),\"\"),\"\")","v":""},{"$f":"IFERROR(IF(LeadData[[#This Row],[Πρόβλεψη \nΚλείσιμο]] <>\"\",IF(LeadData[[#This Row],[Πρόβλεψη \nΚλείσιμο]] = \"Μάιος\",LeadData[Σταθμισμένη \nΠρόβλεψη],0),\"\"),\"\")","v":""},{"$f":"IFERROR(IF(LeadData[[#This Row],[Πρόβλεψη \nΚλείσιμο]] <>\"\",IF(LeadData[[#This Row],[Πρόβλεψη \nΚλείσιμο]] = \"Ιούνιος\",LeadData[Σταθμισμένη \nΠρόβλεψη],0),\"\"),\"\")","v":""},{"$f":"IFERROR(IF(LeadData[[#This Row],[Πρόβλεψη \nΚλείσιμο]] <>\"\",IF(LeadData[[#This Row],[Πρόβλεψη \nΚλείσιμο]] = \"Πρόβλεψη\",LeadData[Σταθμισμένη \nΠρόβλεψη],0),\"\"),\"\")","v":""},{"$f":"IFERROR(IF(LeadData[[#This Row],[Πρόβλεψη \nΚλείσιμο]] <>\"\",IF(LeadData[[#This Row],[Πρόβλεψη \nΚλείσιμο]] = \"Αύγουστος\",LeadData[Σταθμισμένη \nΠρόβλεψη],0),\"\"),\"\")","v":""},{"$f":"IFERROR(IF(LeadData[[#This Row],[Πρόβλεψη \nΚλείσιμο]] <>\"\",IF(LeadData[[#This Row],[Πρόβλεψη \nΚλείσιμο]] = \"Σεπτέμβριος\",LeadData[Σταθμισμένη \nΠρόβλεψη],0),\"\"),\"\")","v":""},{"$f":"IFERROR(IF(LeadData[[#This Row],[Πρόβλεψη \nΚλείσιμο]] <>\"\",IF(LeadData[[#This Row],[Πρόβλεψη \nΚλείσιμο]] = \"Οκτώβριος\",LeadData[Σταθμισμένη \nΠρόβλεψη],0),\"\"),\"\")","v":""},{"$f":"IFERROR(IF(LeadData[[#This Row],[Πρόβλεψη \nΚλείσιμο]] <>\"\",IF(LeadData[[#This Row],[Πρόβλεψη \nΚλείσιμο]] = \"Νοέμβριος\",LeadData[Σταθμισμένη \nΠρόβλεψη],0),\"\"),\"\")","v":""},{"$f":"IFERROR(IF(LeadData[[#This Row],[Πρόβλεψη \nΚλείσιμο]] <>\"\",IF(LeadData[[#This Row],[Πρόβλεψη \nΚλείσιμο]] = \"Δεκέμβριος\",LeadData[Σταθμισμένη \nΠρόβλεψη],0),\"\"),\"\")","v":""}]
[null,"Άθροισμα",{"$f":"SUBTOTAL(109,ForecastedSales[Ιανουάριος \nΠρόβλεψη])","v":{"v":270000,"d":"270,000 €"}},{"$f":"SUBTOTAL(109,ForecastedSales[Φεβρουάριος \nΠρόβλεψη])","v":{"v":20000,"d":"20,000 €"}},{"$f":"SUBTOTAL(109,ForecastedSales[Μάρτιος \nΠρόβλεψη])","v":{"v":20000,"d":"20,000 €"}},{"$f":"SUBTOTAL(109,ForecastedSales[Απρίλιος \nΠρόβλεψη])","v":{"v":0,"d":"0 €"}},{"$f":"SUBTOTAL(109,ForecastedSales[Μάιος \nΠρόβλεψη])","v":{"v":0,"d":"0 €"}},{"$f":"SUBTOTAL(109,ForecastedSales[Ιούνιος \nΠρόβλεψη])","v":{"v":0,"d":"0 €"}},{"$f":"SUBTOTAL(109,ForecastedSales[Πρόβλεψη \nΙουλίου])","v":{"v":0,"d":"0 €"}},{"$f":"SUBTOTAL(109,ForecastedSales[Αύγουστος \nΠρόβλεψη])","v":{"v":0,"d":"0 €"}},{"$f":"SUBTOTAL(109,ForecastedSales[Σεπτέμβριος \nΠρόβλεψη])","v":{"v":0,"d":"0 €"}},{"$f":"SUBTOTAL(109,ForecastedSales[Οκτώβριος \nΠρόβλεψη])","v":{"v":0,"d":"0 €"}},{"$f":"SUBTOTAL(109,ForecastedSales[Νοέμβριος \nΠρόβλεψη])","v":{"v":0,"d":"0 €"}},{"$f":"SUBTOTAL(109,ForecastedSales[Δεκέμβριος \nΠρόβλεψη])","v":{"v":0,"d":"0 €"}}]
[null,"ΣΩΡΕΥΤΙΚΟ ΣΥΝΟΛΟ",{"$f":"C20","v":{"v":270000,"d":"270,000 €"}},{"$f":"C21+D20","v":{"v":290000,"d":"290,000 €"}},{"$f":"D21+E20","v":{"v":310000,"d":"310,000 €"}},{"$f":"E21+F20","v":{"v":310000,"d":"310,000 €"}},{"$f":"F21+G20","v":{"v":310000,"d":"310,000 €"}},{"$f":"G21+H20","v":{"v":310000,"d":"310,000 €"}},{"$f":"H21+I20","v":{"v":310000,"d":"310,000 €"}},{"$f":"I21+J20","v":{"v":310000,"d":"310,000 €"}},{"$f":"J21+K20","v":{"v":310000,"d":"310,000 €"}},{"$f":"K21+L20","v":{"v":310000,"d":"310,000 €"}},{"$f":"L21+M20","v":{"v":310000,"d":"310,000 €"}},{"$f":"M21+N20","v":{"v":310000,"d":"310,000 €"}}]

{"sheet":"Μηνιαία σταθμισμένη πρόβλεψη","index":2,"n_rows":3,"n_cols":2,"rows_kept":3}
[null,{"$f":"Επωνυμία_Εταιρείας","v":"Επωνυμία εταιρείας"}]
[null,"Μηνιαία σταθμισμένη πρόβλεψη"]
[null," "]